Workbook

Sheet Sayfa1
A1: TERME TİCARET BORSASI
A2: AYLAR İTİBARİYLE BORSALARDA MÜSTAHSİL SATIŞI OLARAK İŞLEM GÖREN 2012 YILI MAHSULÜ KABUKLU FINDIK MİKTARLARINI GÖSTERİR LİSTE
A4: 2012 ÜRÜNÜ | B4: 2012 Ağustos | C4: 2012 Eylül | D4: 2012 Ekim | E4: 2012 Kasım | F4: 2012 Aralık | G4: 2013 Ocak | H4: 2013 Şubat | I4: 2013 Mart | J4: 2013 Nisan | K4: 2013 Mayıs | L4: 2013 Haziran | M4: 2013 Temmuz | N4: 2013 Ağustos | O4: TOPLAM
A5: İL/İLÇE
A6: RİZE | B6: 20746 | C6: 144901 | D6: 250673 | E6: 546399 | F6: 420043 | G6: 38116 | H6: 297405 | I6: 0 | J6: 0 | K6: 11000 | L6: 25000 | M6: 0 | N6: 239477 | O6: =SUM(B6:N6) -> 1993760
A7: TRABZON | B7: 1887089 | C7: 8112501 | D7: 5344229 | E7: 5988759 | F7: 7077739 | G7: 4567866 | H7: 4841532 | I7: 4769208 | J7: 2297386 | K7: 1960957 | L7: 1632505 | M7: 112715 | N7: 3392669 | O7: =SUM(B7:N7) -> 51985155
A8: GİRESUN | B8: 3675082 | C8: 22106475 | D8: 12964576 | E8: 14052971 | F8: 10333016 | G8: 8192189 | H8: 7207042 | I8: 8388769 | J8: 4726644 | K8: 3847767 | L8: 1383157 | M8: 675017 | N8: 9887612 | O8: 107440317
A9: ORDU | B9: 6700283 | C9: 25986910 | D9: 16476783 | E9: 13325527 | F9: 17880000 | G9: 9357766 | H9: 10977013 | I9: 10725809 | J9: 6773174 | K9: 5397984 | L9: 4288234 | M9: 2663632 | N9: 15828293 | O9: 146381408
A10: FATSA | B10: 1894099 | C10: 6634426 | D10: 2953909 | E10: 1765930 | F10: 2149196 | G10: 1515367 | H10: 2010598 | I10: 2090151 | J10: 1536350 | K10: 1195000 | L10: 1141461 | M10: 399027 | N10: 6838444 | O10: 32123958
A11: ÜNYE | B11: 1414759 | C11: 7213082 | D11: 4080057 | E11: 2938891 | F11: 3014876 | G11: 2169175 | H11: 2508297 | I11: 3362252 | J11: 1552368 | K11: 1004000 | L11: 2372486 | M11: 1169521 | N11: 4948841 | O11: 37748605
A12: TERME | B12: 1233026 | C12: 3883108 | D12: 1977088 | E12: 2352531 | F12: 3146319 | G12: 1976480 | H12: 2693177 | I12: 2304089 | J12: 777243 | K12: 530000 | L12: 638001 | M12: 418775 | N12: 2841073 | O12: 24770910
A13: ÇARŞAMBA | B13: 1602824 | C13: 14351700 | D13: 8597341 | E13: 6754772 | F13: 6326386 | G13: 4239056 | H13: 3418955 | I13: 2617021 | J13: 1271635 | K13: 1398000 | L13: 757853 | M13: 406567 | N13: 4446501 | O13: 56188611
A14: SAMSUN | B14: 93400 | C14: 1898557 | D14: 1555583 | E14: 1377600 | F14: 1294341 | G14: 1143334 | H14: 760314 | I14: 1024244 | J14: 358095 | K14: 245000 | L14: 291611 | M14: 37750 | N14: 1464471 | O14: 11544300
A15: BAFRA | B15: 0 | C15: 0 | D15: 0 | E15: 0 | F15: 0 | G15: 0 | H15: 0 | I15: 0 | J15: 0 | K15: 0 | L15: 0 | M15: 0 | O15: 0
A16: TOPLAM | B16: =SUM(B6:B15) -> 18521308 | C16: 90331660 | D16: 54200239 | E16: 49103380 | F16: 51641916 | G16: 33199349 | H16: =SUM(H6:H15) -> 34714333 | I16: 35281543 | J16: 19292895 | K16: 15589708 | L16: 12530308 | M16: 5883004 | N16: 49887381 | O16: 470177024
A17: DÜZCE | B17: 11141296 | C17: 46170101 | D17: 24504313 | E17: 16880141 | F17: 13002122 | G17: 3676133 | H17: 5208368 | I17: 5492043 | J17: 2822451 | K17: 3393000 | L17: 2490208 | M17: 828638 | N17: 11161077 | O17: 146769891
A18: AKYAZI | B18: 2198025 | C18: 4383103 | D18: 1476239 | E18: 1710416 | F18: 583667 | G18: 119550 | H18: 143954 | I18: 284452 | J18: 54828 | K18: 185000 | L18: 193379 | M18: 73879 | N18: 1972133 | O18: 13378625
A19: SAKARYA | B19: 11945482 | C19: 55592143 | D19: 23277862 | E19: 12912057 | F19: 11189916 | G19: 5869885 | H19: 5567747 | I19: 7348582 | J19: 3020708 | K19: 3447000 | L19: 2939673 | M19: 854812 | N19: 8692904 | O19: 152658771
A20: KASTAMONU | B20: 0 | C20: 0 | D20: 0 | E20: 52044 | F20: 11330 | G20: 0 | H20: 0 | I20: 0 | J20: 0 | K20: 63 | L20: 0 | M20: 0 | N20: 9984 | O20: 73421
A21: TOPLAM | B21: =SUM(B17:B20) -> 25284803 | C21: 106145347 | D21: 49258414 | E21: 31554658 | F21: 24787035 | G21: 9665568 | H21: =SUM(H17:H20) -> 10920069 | I21: 13125077 | J21: 5897987 | K21: 7025063 | L21: 5623260 | M21: 1757329 | N21: 21836098 | O21: =SUM(O17:O20) -> 312880708
A22: G. TOPLAM | B22: =SUM(B16+B21) -> 43806111 | C22: 196477007 | D22: 103458653 | E22: 80658038 | F22: 76428951 | G22: 42864917 | H22: 45634402 | I22: 48406620 | J22: 25190882 | K22: 22614771 | L22: 18153568 | M22: 7640333 | N22: 71723479 | O22: 783057732
B23: Kaynak: İlgili Ticaret Borsaları
A25: Tarım ve Köyişleri Bakanlığı İl Müdürlüklerince Yapılan Türkiye Fındık Rekolteleri
A27: İLLER | B27: 2005 TON/KAB. | C27: 2006 TON/KAB. | D27: 2007 TON/KAB. | E27: 2008 TON/KAB. | F27: 2009 TON/KAB. | G27: 2010 TON/KAB. | H27: 2011 TON/KAB. | I27: 2012 TON/KAB. | J27: 2013 TON/KAB.
A28: ARTVİN | B28: 6450 | C28: 7240 | D28: 7821 | E28: 8350 | F28: 11572 | G28: 9954 | H28: 8745 | I28: 8722
A29: RİZE | B29: 910 | C29: 1415 | D29: 1322 | E29: 1408 | F29: 2147 | G29: 2566 | H29: 2121 | I29: 3610
A30: TRABZON | B30: 47863 | C30: 55006 | D30: 42491 | E30: 74307 | F30: 36307 | G30: 45730 | H30: 33768 | I30: 63489
A31: GİRESUN | B31: 81305 | C31: 86723 | D31: 64131 | E31: 139764 | F31: 76273 | G31: 63776 | H31: 53733 | I31: 110771
A32: ORDU | B32: 172128 | C32: 188060 | D32: 140000 | E32: 210583 | F32: 91758 | G32: 201183 | H32: 128190 | I32: 161734
A33: SAMSUN | B33: 65034 | C33: 79312 | D33: 37714 | E33: 115706 | F33: 71656 | G33: 82693 | H33: 78926 | I33: 100539
A34: SİNOP | B34: 1295 | C34: 1322 | D34: 1758 | E34: 1615 | F34: 1847 | G34: 1567 | H34: 605 | I34: 1125
A35: KASTAMONU | B35: 1972 | C35: 5895 | D35: 4519 | E35: 5396 | F35: 4288 | G35: 6465 | H35: 4300 | I35: 6336
A36: BARTIN | B36: 1586 | C36: 2166 | D36: 3082 | E36: 2852 | F36: 3455 | G36: 3530 | H36: 3621 | I36: 7269
A37: DÜZCE | B37: 53850 | C37: 78416 | D37: 71213 | E37: 90972 | F37: 72689 | G37: 80368 | H37: 52023 | I37: 80339
A38: ADAPAZARI | B38: 62682 | C38: 113988 | D38: 88245 | E38: 115262 | F38: 84012 | G38: 117231 | H38: 55789 | I38: 122766
A39: ZONGULDAK | B39: 18444 | C39: 23108 | D39: 21457 | E39: 24736 | F39: 21291 | G39: 25886 | H39: 22376 | I39: 25961
A40: KOCAELİ | B40: 11458 | C40: 12341 | D40: 14659 | E40: 13595 | F40: 13581 | G40: 13598 | H40: 8649 | I40: 14730
A41: G.TOPLAM | B41: =SUM(B28:B40) -> 524977 | C41: =SUM(C28:C40) -> 654992 | D41: 498412 | E41: 804546 | F41: 490876 | G41: 654547 | H41: =SUM(H28:H40) -> 452846 | I41: =SUM(I28:I40) -> 707391 | J41: =SUM(J28:J40) -> 0
A42: GERÇEKLEŞEN RESMİ TOPLAM | B42: 576911 | C42: 803376 | D42: 556301 | E42: 878023 | F42: 440413 | G42: 637427 | H42: 439340 | I42: =O22 -> 783057732 | K42: TERME TİCARET BORSASI

Sheet Sayfa2

Sheet Sayfa3
